fUST/lending_fUST_20240817
["ID","MTS","AMOUNT","RATE_DAILY","PERIOD"]
[335160096,1723896434260,-500.0,0.0004775,120]
[335160097,1723896434289,-500.0,0.0004775,120]
[335160098,1723896434313,-500.0,0.0004775,120]
[335160099,1723896434336,-500.0,0.0004775,120]
[335160100,1723896434360,-500.0,0.0004775,120]
[335160101,1723896434381,-500.0,0.0004775,120]
[335160102,1723896434403,-500.0,0.0004775,120]
[335160103,1723896434570,-500.0,0.0004775,120]
[335160104,1723896434592,-500.0,0.0004775,120]
[335160105,1723896434614,-500.0,0.0004775,120]
[335160106,1723896434636,-102.6570404,0.0004775,120]
[335160107,1723896442099,-397.3429596,0.0004775,120]
[335160108,1723896442121,-79.95096023,0.0004775,120]
[335160109,1723896443114,-420.04903977,0.0004775,120]
[335160110,1723896443137,-465.76059274,0.0004775,120]
[335160112,1723896497307,699.61211537,0.00014519,3]
[335160117,1723896553100,-274.91374744,0.00044227,30]
[335160118,1723896558373,239.34774772,0.00014519,2]
[335160126,1723896622151,-1434.7274415,0.00038531,2]
[335160127,1723896622179,-2325.08625256,0.00044227,30]
[335160128,1723896622211,-500.0,0.00045901,30]
[335160129,1723896622237,-2324.57215942,0.00047639,28]
[335160130,1723896622267,-1709.09559728,0.0004773,5]
[335160131,1723896622294,-500.0,0.00047739,120]
[335160132,1723896622319,-428.3346877,0.00047739,120]
[335160133,1723896622344,-500.0,0.00047739,120]
[335160134,1723896622371,-500.0,0.00047739,120]
[335160135,1723896622397,-500.0,0.00047739,120]
[335160136,1723896622423,-500.0,0.00047739,120]
[335160137,1723896622450,-500.0,0.00047739,120]
[335160138,1723896622474,-500.0,0.00047739,120]
[335160139,1723896622500,-500.0,0.00047739,120]
[335160140,1723896622524,-500.0,0.00047739,120]
[335160141,1723896622551,-500.0,0.00047739,120]
[335160142,1723896622577,-500.0,0.00047739,120]
[335160143,1723896622603,-500.0,0.00047739,120]
[335160144,1723896622628,-500.0,0.00047739,120]
[335160145,1723896622655,-500.0,0.00047739,120]
[335160146,1723896622680,-500.0,0.00047739,120]
[335160147,1723896622704,-500.0,0.00047739,120]
[335160148,1723896622728,-500.0,0.00047739,120]
[335160149,1723896622753,-500.0,0.00047739,120]
[335160150,1723896622778,-500.0,0.00047739,120]
[335160151,1723896622804,-500.0,0.00047739,120]
[335160152,1723896622830,-500.0,0.00047739,120]
[335160153,1723896623026,-500.0,0.00047739,120]
[335160154,1723896623050,-500.0,0.00047739,120]
[335160155,1723896623075,-500.0,0.00047739,120]
[335160156,1723896623100,-500.0,0.00047739,120]
[335160157,1723896623124,-500.0,0.00047739,120]
[335160158,1723896623148,-500.0,0.00047739,120]
[335160159,1723896623172,-500.0,0.00047739,120]
[335160160,1723896623196,-500.0,0.00047739,120]
[335160161,1723896623222,-500.0,0.00047739,120]
[335160162,1723896623249,-500.0,0.00047739,120]
[335160163,1723896623274,-500.0,0.00047739,120]
[335160164,1723896623299,-500.0,0.00047739,120]
[335160165,1723896623325,-500.0,0.00047739,120]
[335160166,1723896623351,-500.0,0.00047739,120]
[335160167,1723896623378,-500.0,0.00047739,120]
[335160168,1723896623402,-500.0,0.00047739,120]
[335160169,1723896623425,-500.0,0.00047739,120]
[335160170,1723896623449,-500.0,0.00047739,120]
[335160171,1723896623472,-500.0,0.00047739,120]
[335160172,1723896623496,-641.54377596,0.00047739,120]
[335160173,1723896623521,-500.0,0.00047739,120]
[335160174,1723896623545,-500.0,0.00047739,120]
[335160175,1723896623570,-500.0,0.00047739,120]
[335160176,1723896623593,-500.0,0.00047739,120]
[335160177,1723896623617,-500.0,0.00047739,120]
[335160178,1723896623642,-500.0,0.00047739,120]
[335160179,1723896623668,-500.0,0.00047739,120]
[335160180,1723896623693,-500.0,0.00047739,120]
[335160181,1723896623717,-500.0,0.00047739,120]
[335160182,1723896623744,-500.0,0.00047739,120]
[335160183,1723896623769,-500.0,0.00047739,120]
[335160184,1723896623793,-500.0,0.00047739,120]
[335160185,1723896623816,-250.0,0.00047739,120]
[335160186,1723896623840,-500.0,0.00047739,120]
[335160187,1723896623864,-500.0,0.00047739,120]
[335160188,1723896623889,-500.0,0.00047739,120]
[335160189,1723896623914,-362886.64008558,0.00047739,30]
[335160190,1723896623955,195.4316,0.00019,2]
[335160191,1723896623979,261.93718396,0.00019,2]
[335160192,1723896624004,218.78668587,0.00019,2]
[335160193,1723896624033,1237.45806634,0.00019,2]
[335160194,1723896628975,-140397.75909442,0.00047739,30]
[335160195,1723896629001,-150000.0,0.0004774,30]
[335160196,1723896629030,-4345.68338588,0.0005,60]
[335160197,1723896630786,174.75672236,0.00017598,2]
[335160219,1723896632408,649.83428139,0.00047738,120]
[335160220,1723896633600,850.51877308,0.00017598,2]
[335160221,1723896633845,500.0,0.00047738,120]
[335160222,1723896633876,539.15437759,0.00047738,120]
[335160223,1723896633907,500.0,0.00047738,120]
[335160224,1723896633966,500.0,0.00047738,120]
[335160225,1723896634021,500.0,0.00047738,120]
[335160226,1723896634086,500.0,0.00047738,120]
[335160227,1723896634201,500.0,0.00047738,120]
[335160228,1723896636630,157.527109,0.00014247,2]
[335160229,1723896636843,157.527109,0.00031781,2]
[335160230,1723896637057,157.527109,0.00049315,2]
[335160238,1723896640366,665.04001235,0.00017598,2]
[335160251,1723896645984,-2698.60926066,0.00047752,2]
[335160252,1723896645994,-1102.1373267,0.00047752,2]
[335160253,1723896646003,-153.6725702,0.00047752,2]
[335160254,1723896646015,-166.0,0.00047752,2]
[335160255,1723896646024,-18923.47478559,0.00047752,2]
[335160256,1723896646036,-465.31809491,0.00047752,2]
[335160257,1723896646046,-1145.3176271,0.00047752,2]
[335160258,1723896646056,-2005.47169671,0.00047752,2]
[335160259,1723896646067,-190.99957452,0.00047752,2]
[335160260,1723896646077,-435.39755168,0.00047752,2]
[335160261,1723896646086,-222.40153844,0.00047752,2]
[335160262,1723896646095,-10010.39216654,0.00047752,2]
[335160263,1723896646105,-3044.69721187,0.00047752,2]
[335160264,1723896646115,-3631.58088672,0.00047752,2]
[335160265,1723896646124,-45282.75488383,0.00047752,2]
[335160266,1723896744630,273.37336231,0.00023,2]
[335160267,1723896755767,300.50416595,0.0002,2]
[335160268,1723896793331,2930.93515321,0.00014519,2]
[335160269,1723896812078,850.51877308,0.00014519,2]
[335160274,1723896849782,154.80649189,0.0002,2]
[335160275,1723896879300,174.7908282,0.00014519,2]
[335160276,1723896893935,156.50620257,0.00014519,2]
[335160277,1723896931803,160.63474255,0.00017598,2]
[335160288,1723897013752,805.26683965,0.00023,2]
[335160300,1723897091694,161.075404,0.00014247,2]
[335160309,1723897211665,154.94355817,0.00022,2]
[335160313,1723897462599,448.28406141,0.00022,2]
[335160319,1723897545157,-566.70719667,0.00024728,2]
[335160320,1723897554102,-1422.66646123,0.00024728,2]
[335160322,1723897627113,-885.25496858,0.00024728,2]
[335160323,1723897637103,-964.17216374,0.00024662,2]
[335160324,1723897644108,-231.0641402,0.00024662,2]
[335160325,1723897647160,-248.13584982,0.00024662,2]
[335160327,1723897715590,1990.62590843,0.000176,2]
[335160328,1723897718523,159.301256,0.00014247,2]
[335160329,1723897718828,186.48818551,0.000191,2]
[335160334,1723897753245,150.0,0.00023,2]
[335160336,1723897801087,594.13592446,0.00023,7]
[335160378,1723897831967,-301.74351876,0.00023151,2]
[335160380,1723897831977,-251.0,0.00023734,2]
[335160382,1723897831987,-250.0000002,0.00023862,2]
[335160384,1723897831997,-649.99900176,0.00024628,2]
[335160387,1723897832010,-1652.19032291,0.00024628,2]
[335160389,1723897832022,-754.93848363,0.00024637,2]
[335160391,1723897832035,-4488.45221994,0.00024637,2]
[335160394,1723897832046,-380.0,0.00024658,2]
[335160396,1723897832057,-882.69740535,0.00024662,2]
[335160398,1723897832070,-300.0,0.00024687,2]
[335160400,1723897832081,-300.0,0.00024687,2]
[335160403,1723897832092,-782.32633188,0.00024688,2]
[335160405,1723897832103,-1110.60501038,0.00024688,2]
[335160407,1723897832116,-154.80649189,0.00024688,2]
[335160409,1723897832127,-154.80649189,0.0002469,2]
[335160411,1723897832136,-308.51813681,0.0002469,2]
[335160413,1723897832146,-271.4297146,0.0002469,2]
[335160415,1723897832156,-167.33482158,0.0002469,2]
[335160418,1723897832165,-500.0,0.00024698,2]
[335160420,1723897832175,-500.0,0.00024698,2]
[335160422,1723897832185,-516.03376573,0.00024698,2]
[335160424,1723897832196,-500.0,0.00024698,2]
[335160426,1723897832207,-500.0,0.00024698,2]
[335160428,1723897832217,-389.3065637,0.00024698,2]
[335160430,1723897832229,-595.37199912,0.00024699,3]
[335160461,1723897838158,-20000.0,0.00024699,3]
[335160462,1723897838521,-7004.78630024,0.00024699,3]
[335160485,1723897844111,-41064.18743803,0.00024699,3]
[335160486,1723897844121,-435.0,0.00024756,2]
[335160487,1723897844130,-154.79103211,0.00024923,2]
[335160488,1723897844139,-8347.81907944,0.00025097,2]
[335160489,1723897844149,-420.0,0.00027156,2]
[335160490,1723897844158,-159.301256,0.00027884,2]
[335160491,1723897844167,-180.0,0.00029871,2]
[335160492,1723897844177,-3601.2513993,0.00031628,2]
[335160493,1723897844187,-3000.0,0.00032093,2]
[335160494,1723897844197,-276.083672,0.00035549,2]
[335160495,1723897844207,-159.301256,0.00041522,2]
[335160496,1723897844217,-629.61360662,0.00047,30]
[335160497,1723897844248,-10.99727731,0.00047,30]
[335160505,1723897904367,850.51877308,0.00014519,2]
[335160506,1723897912084,190.03280971,0.00014519,2]
[335160507,1723897914443,-207.15720901,0.00024656,7]
[335160508,1723897914471,-435.0,0.0002469,2]
[335160509,1723897914497,-534.41325645,0.00024699,7]
[335160510,1723897914770,154.68290005,0.00014519,2]
[335160511,1723897914957,448.22805728,0.00024699,2]
[335160512,1723897917739,155.27455478,0.00014519,2]
[335160514,1723897926399,154.68290005,0.00014519,2]
[335160515,1723897926928,157.06256772,0.00014519,2]
[335160516,1723897927364,320.1315387,0.00014519,2]
[335160517,1723897928260,273.37336231,0.00025,2]
[335160518,1723897928408,174.75672236,0.00014519,2]
[335160519,1723897939037,154.85013614,0.00014519,2]
[335160520,1723897939878,665.04001235,0.00014519,2]
[335160521,1723897939912,636.72640188,0.00014519,2]
[335160522,1723897948082,180.63105164,0.00014519,2]
[335160523,1723897950630,403.97807828,0.00014519,2]
[335160524,1723897956406,154.68290005,0.00014519,2]
[335160525,1723897956967,185.96739128,0.00017598,2]
[335160526,1723897958202,196.5840757,0.00014519,2]
[335160527,1723897958720,154.80649189,0.00014519,2]
[335160528,1723897968270,154.83734357,0.00017598,2]
[335160529,1723897969597,189.89351809,0.00017598,2]
[335160530,1723897971518,156.82259234,0.00017598,2]
[335160531,1723897973422,157.00525026,0.00017598,2]
[335160532,1723898044620,4707.49685318,0.00021331,2]
[335160533,1723898078648,4154.49075148,0.00021331,2]
[335160540,1723898185870,174.223585,0.00014247,2]
[335160541,1723898212027,2912.02557497,0.00024999,2]
[335160542,1723898260696,271.24156414,0.00024999,2]
[335160543,1723898294045,661.45368643,0.00024999,2]
[335160544,1723898299584,811.03421713,0.00024999,2]
[335160545,1723898423933,1020.46995092,0.00024999,2]
[335160546,1723898448137,781.92265584,0.00024999,2]
[335160550,1723898714511,159.301256,0.00014247,2]
[335160551,1723898734143,-2723.4058136,0.00027,5]
[335160553,1723898761567,2939.75159273,0.00025,2]
[335160557,1723898840109,-126.34840727,0.00025,2]
[335160558,1723898840132,-407.83591302,0.00025,2]
[335160559,1723898840156,-363.08910568,0.00025399,2]
[335160560,1723898840190,-286.43395436,0.00025399,2]
[335160561,1723898842108,-1121.26513451,0.00025399,2]
[335160562,1723898843276,-313.91151072,0.00025399,2]
[335160563,1723898849107,-309.05002817,0.00025399,2]
[335160564,1723898849129,-374.27861243,0.00027,5]
[335160565,1723898853093,-397.30356711,0.00027,5]
[335160576,1723899012308,283.04222676,0.00024,2]
[335160612,1723899032285,-2005.01200686,0.00027,5]
[335160613,1723899032295,-174.223585,0.00029589,2]
[335160614,1723899032305,-220.93701,0.00030831,2]
[335160615,1723899032314,-220.93701,0.00030915,2]
[335160616,1723899032324,-220.93701,0.00031,2]
[335160617,1723899032333,-220.93701,0.00031084,2]
[335160618,1723899032343,-400.0,0.0003109,2]
[335160619,1723899032352,-318.0,0.0003109,2]
[335160620,1723899032361,-3001.73643412,0.00031091,2]
[335160621,1723899032373,-2966.94684213,0.00031091,2]
[335160631,1723899038320,-1346.5,0.00031091,2]
[335160646,1723899040424,-3000.0,0.00030689,2]
[335160647,1723899040435,-17564.81672375,0.00031091,2]
[335160648,1723899040446,-220.93701,0.00031169,2]
[335160649,1723899040457,-220.93701,0.00031253,2]
[335160650,1723899040468,-220.93701,0.00031338,2]
[335160651,1723899040479,-220.93701,0.00031422,2]
[335160652,1723899040490,-220.93701,0.00031507,2]
[335160653,1723899040501,-220.93701,0.00031591,2]
[335160654,1723899040512,-220.93701,0.00031676,2]
[335160655,1723899040523,-220.93701,0.00031761,2]
[335160656,1723899040533,-1486.09173367,0.00031829,2]
[335160710,1723899046412,-906.0,0.00031829,2]
[335160711,1723899046468,-351.11928452,0.00031829,2]
[335160712,1723899046478,-220.93701,0.00031845,2]
[335160713,1723899046487,-220.93701,0.0003193,2]
[335160714,1723899046497,-220.93701,0.00032014,2]
[335160715,1723899046507,-220.93701,0.00032099,2]
[335160716,1723899046516,-220.93701,0.00032183,2]
[335160717,1723899046526,-220.93701,0.00032268,2]
[335160718,1723899046536,-220.93701,0.00032352,2]
[335160719,1723899046546,-220.93701,0.00032437,2]
[335160720,1723899046556,-2606.26346968,0.00032727,2]
[335160721,1723899046566,-320.0,0.00034199,2]
[335160722,1723899046576,-159.301256,0.00034703,2]
[335160723,1723899046585,-163.150964,0.00035927,2]
[335160724,1723899046594,-374.10220785,0.00036,5]
[335160725,1723899046604,-174.223585,0.00044932,2]
[335160726,1723899046614,-500.0,0.00045086,30]
[335160727,1723899046623,-1000.0,0.00046575,120]
[335160728,1723899046635,-500.0,0.00046927,30]
[335160729,1723899046645,-3474.42919306,0.00047,30]
[335160730,1723899046654,-1000.0,0.00047,47]
[335160731,1723899046663,-1000.0,0.00047123,120]
[335160732,1723899046674,-1172.31395989,0.00047481,30]
[335160734,1723899074893,156.56267046,0.0002,2]
[335160737,1723899151538,309.67712516,0.00014519,2]
[335160738,1723899151711,1944.21536927,0.0002,2]
[335160740,1723899203368,177.708057,0.00014247,2]
[335160741,1723899203567,177.708057,0.00020707,2]
[335160742,1723899222329,210.04370933,0.00014519,2]
[335160743,1723899250755,212.83039811,0.00014519,2]
[335160749,1723899537812,3057.83719905,0.00017598,2]
[335160750,1723899669686,159.301256,0.00014247,2]
[335160752,1723899801675,3149.73329595,0.00017898,2]
[335160753,1723899808999,237.94619387,0.00017269,2]
[335160754,1723899816796,806.86793127,0.0002,2]
[335160758,1723899931155,-1177.38270511,0.00025,30]
[335160759,1723899945095,-1435.22717462,0.00025,30]
[335160760,1723899945117,-177.708057,0.00027167,2]
[335160761,1723899945138,-1588.42130813,0.000322,11]
[335160762,1723900025140,-232.66490666,0.000322,11]
[335160763,1723900026104,-1178.91378521,0.000322,11]
[335160764,1723900026127,-400.0,0.00032209,2]
[335160765,1723900026149,-4754.574954,0.0003221,11]
[335160766,1723900026170,-378.65167889,0.00033526,2]
[335160768,1723900036459,-541.6910413,0.00033526,2]
[335160769,1723900039105,-424.64976357,0.00033526,2]
[335160770,1723900040103,-886.95601186,0.00033526,2]
[335160771,1723900082174,457.36878396,0.00024,2]
[335160772,1723900098456,218.78668587,0.00024,2]
[335160777,1723900144578,159.001945,0.00014247,2]
[335160778,1723900144785,159.001945,0.00021065,2]
[335160781,1723900153121,-159.001945,0.00027884,2]
[335160782,1723900153144,-200.0,0.00033525,2]
[335160783,1723900153166,-168.84393539,0.00033525,2]
[335160801,1723900232336,-9080.30524678,0.00033526,2]
[335160802,1723900232347,-189.708798,0.00034244,2]
[335160803,1723900232356,-189.708798,0.00034338,2]
[335160804,1723900232366,-189.708798,0.00034432,2]
[335160805,1723900232375,-189.708798,0.00034526,2]
[335160806,1723900232384,-189.708798,0.0003462,2]
[335160807,1723900232394,-159.001945,0.00034703,2]
[335160808,1723900232403,-189.708798,0.00034714,2]
[335160809,1723900232412,-189.708798,0.00034808,2]
[335160810,1723900232422,-189.708798,0.00034902,2]
[335160811,1723900232432,-189.708798,0.00034996,2]
[335160812,1723900232441,-189.708798,0.0003509,2]
[335160813,1723900232450,-189.708798,0.00035183,2]
[335160814,1723900232462,-189.708798,0.00035277,2]
[335160815,1723900232480,-189.708798,0.00035371,2]
[335160816,1723900232495,-189.708798,0.00035465,2]
[335160817,1723900232504,-251.0,0.00035508,2]
[335160818,1723900232515,-3000.0,0.00035528,2]
[335160819,1723900232524,-189.708798,0.00035559,2]
[335160820,1723900232534,-189.708798,0.00035653,2]
[335160821,1723900232544,-189.708798,0.00035747,2]
[335160822,1723900232553,-189.708798,0.00035841,2]
[335160823,1723900232564,-189.708798,0.00035935,2]
[335160824,1723900232574,-189.708798,0.00036029,2]
[335160825,1723900232583,-262.279488,0.0003911,2]
[335160826,1723900232593,-159.001945,0.00041522,2]
[335160827,1723900232602,-478.4065016,0.00044545,7]
[335160828,1723900232611,-1000.0,0.00044623,7]
[335160829,1723900232622,-1908.94430718,0.00044735,2]
[335160830,1723900232631,-7.68422061,0.00044932,2]
[335160836,1723900238384,-151.61703539,0.00044932,2]
[335160837,1723900238395,-1792.59833388,0.00045,15]
[335160842,1723900241917,-9357.32166612,0.00045,15]
[335160843,1723900241928,-3600.0,0.00045248,30]
[335160844,1723900241939,-1000.0,0.00046575,30]
[335160845,1723900241950,-1000.0,0.00047123,30]
[335160846,1723900241961,-673.12340509,0.0004756,2]
[335160847,1723900241974,-14960.4425882,0.0004759,5]
[335160848,1723900241984,-199.42,0.0004759,30]
[335160849,1723900241995,-203.15894197,0.00047599,31]
[335160850,1723900242005,-500.0,0.00047599,120]
[335160851,1723900242014,-352.74172028,0.00047599,120]
[335160852,1723900242024,-208.08050023,0.000476,61]
[335160853,1723900242033,-107949.83674728,0.000476,7]
[335160854,1723900242044,-151.0,0.0004766,7]
[335160855,1723900242054,-151.0,0.0004766,7]
[335160856,1723900242068,-433.457473,0.0004766,120]
[335160857,1723900242079,-433.457473,0.0004766,120]
[335160858,1723900242089,-151.0,0.0004766,120]
[335160859,1723900242100,-172.852963,0.0004766,120]
[335160860,1723900242111,-172.852963,0.0004766,120]
[335160861,1723900242121,-176.386812,0.0004766,120]
[335160862,1723900242131,-176.386812,0.0004766,120]
[335160863,1723900242142,-59049.29102742,0.0004766,2]
[335160864,1723900242156,-2603.7,0.0004766,2]
[335160870,1723900244292,-6524.83436523,0.0004766,2]
[335160886,1723900246554,-309.67712516,0.0004766,2]
[335160887,1723900302391,210.13067206,0.00014519,2]
[335160888,1723900309798,154.69833824,0.00014519,2]
[335160889,1723900311686,623.61564708,0.00014519,2]
[335160890,1723900312204,180.63105164,0.00014519,2]
[335160891,1723900315559,585.82883324,0.00014519,2]
[335160892,1723900318010,2279.967743,0.00014519,3]
[335160893,1723900320711,535.1745485,0.00014519,2]
[335160894,1723900324795,223.38199524,0.00014519,2]
[335160895,1723900324966,154.79103211,0.00014519,2]
[335160896,1723900329079,188.07021113,0.00014519,2]
[335160897,1723900330288,189.9631639,0.00014519,2]
[335160898,1723900338001,174.75672236,0.00014519,2]
[335160899,1723900339820,586.1473241,0.00014519,2]
[335160900,1723900339894,217.87905879,0.00014519,2]
[335160901,1723900354851,263.70449786,0.00024,2]
[335160903,1723900365354,160.70556169,0.00017598,2]
[335160904,1723900370402,185.70609589,0.00017598,2]
[335160905,1723900372298,154.76781892,0.00017598,2]
[335160908,1723900394716,154.79103211,0.00024,2]
[335160909,1723900407275,5707.62299337,0.00024,7]
[335160913,1723900666036,160.687261,0.00014247,2]
[335160925,1723901013830,1989.3736579,0.00017898,2]
[335160926,1723901137311,2328.62712234,0.00021694,2]
[335160927,1723901156197,-300.0,0.00023999,2]
[335160928,1723901156224,-1300.53546908,0.00024,7]
[335160929,1723901159575,-871.45832364,0.00024,7]
[335160931,1723901229111,-646.16571228,0.00024,7]
[335160932,1723901231345,-341.81048637,0.00024,7]
[335160933,1723901238129,-956.45054855,0.00024,7]
[335160934,1723901243102,-262.12683031,0.00024,7]
[335160936,1723901250104,-1889.85153082,0.00024,7]
[335160944,1723901359109,-179.91951546,0.00024,7]
[335160946,1723901409988,183.610628,0.00014247,2]
[335160947,1723901410199,183.610628,0.00020707,2]
[335161002,1723901438634,-15671.08684014,0.00024,7]
[335161003,1723901438644,-20881.67720801,0.00024,60]
[335161004,1723901438653,-504.34442286,0.00025,2]
[335161005,1723901438663,-183.610628,0.00027167,2]
[335161006,1723901438673,-292.97306538,0.0003,2]
[335161007,1723901438683,-7820.40064861,0.0003,10]
[335161008,1723901438693,-183.610628,0.00033626,2]
[335161009,1723901438703,-150.0,0.000355,24]
[335161010,1723901438713,-211.8778095,0.00037738,2]
[335161011,1723901438722,-2411.324998,0.00037759,2]
[335161012,1723901438732,-251.0,0.00037783,2]
[335161013,1723901438741,-163.150964,0.00038106,2]
[335161014,1723901438751,-250.0,0.00039015,2]
[335161015,1723901438761,-250.0,0.00039122,2]
[335161016,1723901438770,-250.0,0.00039229,2]
[335161017,1723901438780,-250.0,0.00039336,2]
[335161018,1723901438790,-250.0,0.00039443,2]
[335161019,1723901438800,-250.0,0.0003955,2]
[335161020,1723901438811,-250.0,0.00039657,2]
[335161021,1723901438822,-250.0,0.00039764,2]
[335161022,1723901438833,-250.0,0.00039871,2]
[335161023,1723901438845,-250.0,0.00039978,2]
[335161024,1723901438857,-250.0,0.00040085,2]
[335161025,1723901438867,-183.610628,0.00040086,2]
[335161026,1723901438878,-250.0,0.00040192,2]
[335161027,1723901438890,-250.0,0.00040299,2]
[335161028,1723901438901,-250.0,0.00040406,2]
[335161029,1723901438915,-250.0,0.00040513,2]
[335161030,1723901438927,-250.0,0.0004062,2]
[335161031,1723901438936,-250.0,0.00040727,2]
[335161032,1723901438946,-250.0,0.00040834,2]
[335161033,1723901438958,-250.0,0.00040941,2]
[335161034,1723901438967,-250.0,0.00041048,2]
[335161035,1723901438977,-900.0,0.0004398,30]
[335161036,1723901438987,-199.0,0.00045,90]
[335161037,1723901438999,-183.610628,0.00046546,2]
[335161038,1723901439008,-1000.0,0.00047349,7]
[335161039,1723901439025,-1886.29978433,0.000475,120]
[335161112,1723901510373,2655.22678226,0.00014519,2]
[335161113,1723901528003,159.10458921,0.00014519,2]
[335161114,1723901532066,465.56266672,0.00014519,2]
[335161115,1723901539646,245.0,0.00017598,3]
[335161116,1723901541746,234.34404591,0.00014519,2]
[335161117,1723901547565,174.75672236,0.00017598,2]
[335161118,1723901548370,528.56621241,0.00014519,2]
[335161119,1723901551300,341.43157984,0.00014519,2]
[335161127,1723901890088,184.844721,0.00014247,2]
[335161130,1723902025865,1008.0,0.00021918,2]
[335161131,1723902091427,911.50464904,0.00023,2]
[335161136,1723902337151,-160.05354691,0.00025211,2]
[335161137,1723902351495,160.659299,0.00014247,2]
[335161138,1723902351704,160.659299,0.00022429,2]
[335161139,1723902358115,-141.65982614,0.00025211,2]
[335161140,1723902358141,-407.83591302,0.00027878,2]
[335161141,1723902358164,-2145.51655375,0.00027878,2]
[335161145,1723902431327,-160.659299,0.00030612,2]
[335161146,1723902431349,-160.659299,0.00038795,2]
[335161147,1723902431370,-300.0,0.00040326,30]
[335161148,1723902431521,-414.03270609,0.00040327,2]
[335161149,1723902437113,-1028.98092962,0.00040327,2]
[335161150,1723902448135,-512.47160756,0.00040327,2]
[335161151,1723902449092,-248.23317969,0.00033791,4]
[335161152,1723902449117,-296.61110195,0.00040327,2]
[335161153,1723902450150,-313.91151072,0.00040327,2]
[335161154,1723902452663,-903.19113823,0.00040327,2]
[335161168,1723902572112,-233.92314207,0.00040125,5]
[335161185,1723902631730,-180.284462,0.00040749,2]
[335161186,1723902631741,-1103.9617667,0.00040901,2]
[335161187,1723902631751,-180.284462,0.00041174,2]
[335161188,1723902631762,-180.284462,0.00041598,2]
[335161189,1723902631772,-180.284462,0.00042023,2]
[335161190,1723902631782,-180.284462,0.00042448,2]
[335161191,1723902631794,-180.284462,0.00042872,2]
[335161192,1723902631805,-500.0,0.00044908,30]
[335161194,1723902631815,-184.844721,0.00044932,2]
[335161195,1723902631827,-1300.0,0.00045782,30]
[335161197,1723902631837,-160.659299,0.00046977,2]
[335161199,1723902631847,-1000.0,0.00047,120]
[335161201,1723902631859,-2317.47614168,0.000475,120]
[335161270,1723902637848,-1573.2413,0.000475,120]
[335161292,1723902714540,154.77557542,0.00014519,2]
[335161293,1723902725137,174.75672236,0.00014519,2]
[335161294,1723902748879,256.17766502,0.00017598,2]
[335161295,1723902752606,1836.01054274,0.00014519,2]
[335161296,1723902752633,44.63968204,0.00014519,2]
[335161297,1723902767125,227.69980643,0.0002,2]
[335161298,1723902767576,834.32224871,0.00014519,2]
[335161299,1723902767646,193.53718372,0.00014519,2]
[335161300,1723902771684,285.02752751,0.00014519,2]
[335161301,1723902807697,285.05343314,0.00014519,2]
[335161305,1723902841792,157.3534,0.00014247,2]
[335161317,1723903235493,2194.2033755,0.0001,2]
[335161323,1723903311757,160.659299,0.00014247,2]
[335161327,1723903547153,-277.98911235,0.00024,30]
[335161328,1723903547175,-2619.23712811,0.00024803,2]
[335161329,1723903548099,-1554.14566389,0.00024803,2]
[335161333,1723903625097,-882.43417531,0.00024728,2]
[335161334,1723903625117,-5242.02170044,0.00024728,2]
[335161335,1723903625140,-244.3685935,0.00024755,2]
[335161336,1723903627091,-55.6314065,0.00024755,2]
[335161337,1723903627116,-300.0,0.00024755,2]
[335161338,1723903627139,-311.5977074,0.00024756,2]
[335161339,1723903635112,-185.89434159,0.00024756,2]
[335161340,1723903635133,-271.33563937,0.00024803,2]